bitfinex/quotes_BTCUSD_20250410
["timestamp","ask_amount","ask_price","bid_price","bid_amount"]
[1744310470835,0.40566743,79479.0,79478.0,0.0003354]
[1744310471132,0.264219,79479.0,79478.0,0.0003354]
[1744310471338,0.012581,79479.0,79478.0,0.0003354]
[1744310471716,0.01267601,79479.0,79478.0,0.0003354]
[1744310473031,0.13958359,79479.0,79478.0,0.0003354]
[1744310473233,0.15412444,79479.0,79478.0,0.0003354]
[1744310473685,0.24942444,79479.0,79478.0,4e-07]
[1744310473887,0.27876385,79478.0,79477.0,8e-07]
[1744310474093,0.40567143,79478.0,79477.0,8e-07]
[1744310476558,0.264223,79478.0,79477.0,8e-07]
[1744310477459,0.01267601,79479.0,79477.0,8e-07]
[1744310477460,0.25173501,79479.0,79477.0,8e-07]
[1744310477631,0.012582,79478.0,79477.0,8e-07]
[1744310479185,9.501e-05,79479.0,79477.0,8e-07]
[1744310479405,9.501e-05,79479.0,79478.0,0.251641]
[1744310480182,9.501e-05,79479.0,79478.0,0.264223]
[1744310480396,9.501e-05,79479.0,79478.0,0.39113058]
[1744310480572,9.501e-05,79479.0,79478.0,0.12690758]
[1744310480573,0.25173301,79479.0,79478.0,0.12690758]
[1744310480913,0.264223,79478.0,79477.0,8e-07]
[1744310481899,0.39113058,79478.0,79477.0,8e-07]
[1744310482105,0.40567143,79478.0,79477.0,8e-07]
[1744310482304,0.82477143,79478.0,79477.0,8e-07]
[1744310482981,0.264233,79475.0,79474.0,6e-07]
[1744310483177,0.40568143,79475.0,79474.0,6e-07]
[1744310484998,0.264233,79475.0,79474.0,6e-07]
[1744310485125,0.251651,79475.0,79474.0,6e-07]
[1744310485324,9.501e-05,79479.0,79477.0,0.012582]
[1744310485542,0.01267601,79479.0,79474.0,0.0125826]
[1744310485751,0.01267601,79479.0,79475.0,0.251649]
[1744310485947,9.501e-05,79479.0,79478.0,0.264223]
[1744310486155,0.012579,79496.0,79483.0,0.251623]
[1744310486351,0.251614,79487.0,79483.0,0.251623]
[1744310486555,0.012579,79496.0,79479.0,0.34]
[1744310486752,0.012578,79501.0,79494.0,0.012579]
[1744310487023,0.012579,79497.0,79494.0,0.12690758]
[1744310487227,0.012579,79496.0,79491.0,0.34]
[1744310487361,0.251582,79497.0,79493.0,0.264172]
[1744310487563,0.012579,79496.0,79490.0,0.34]
[1744310487762,0.264145,79502.0,79496.0,0.012579]
[1744310488068,0.264116,79511.0,79505.0,0.012577]
[1744310488257,0.012576,79511.0,79505.0,0.012577]
[1744310488461,0.18192,79537.0,79500.0,0.012578]
[1744310488462,0.012573,79532.0,79523.0,0.012574]
[1744310488667,0.012574,79524.0,79519.0,0.012575]
[1744310488868,0.251465,79534.0,79528.0,0.251483]
[1744310489072,0.264041,79533.0,79526.0,0.264062]
[1744310489368,0.13117981,79529.0,79526.0,0.264063]
[1744310489585,0.13117981,79529.0,79527.0,0.251483]
[1744310489724,0.13117981,79529.0,79527.0,0.264057]
[1744310489936,9.523e-05,79529.0,79528.0,0.47948158]
[1744310490326,9.523e-05,79529.0,79528.0,0.57948158]
[1744310493318,9.523e-05,79529.0,79528.0,0.81002158]
[1744310494412,0.000336,79559.0,79548.0,0.603991]
[1744310494620,0.000336,79559.0,79548.0,0.91273858]
[1744310494798,0.00242052,79549.0,79548.0,1.01273858]
[1744310495023,0.000336,79559.0,79558.0,0.803957]
[1744310495212,0.000336,79559.0,79558.0,2.22474458]
[1744310495528,0.0001679,79574.0,79573.0,0.463908]
[1744310495654,0.0001679,79574.0,79573.0,0.77261558]
[1744310495869,0.0001679,79574.0,79573.0,0.82231558]
[1744310496067,9e-07,79574.0,79573.0,0.82231558]
[1744310496272,1e-06,79576.0,79575.0,0.263901]
[1744310496494,1e-06,79576.0,79575.0,1.50581813]
[1744310496669,1e-06,79576.0,79575.0,1.30654557]
[1744310496866,1e-06,79576.0,79575.0,0.60727058]
[1744310497473,1e-06,79576.0,79575.0,0.59080858]
[1744310498604,1e-06,79576.0,79575.0,0.94000768]
[1744310498813,1e-06,79576.0,79575.0,0.32690758]
[1744310499003,1e-06,79576.0,79575.0,0.22690758]
[1744310499198,1e-06,79576.0,79575.0,0.46690758]
[1744310499420,1e-06,79576.0,79573.0,0.2818]
[1744310499421,0.012566,79574.0,79573.0,0.1818]
[1744310499727,1e-06,79576.0,79573.0,0.1818]
[1744310499924,1e-06,79576.0,79575.0,0.012566]
[1744310500125,1e-06,79576.0,79575.0,0.47947358]
[1744310500669,0.251335,79575.0,79573.0,0.2818]
[1744310500880,0.251335,79575.0,79573.0,0.1818]
[1744310500881,0.012566,79574.0,79573.0,0.1818]
[1744310501641,0.251336,79576.0,79558.0,1.29388]
[1744310501642,0.263954,79559.0,79558.0,1.29388]
[1744310501831,0.012569,79558.0,79557.0,0.18152]
[1744310502848,0.012571,79546.0,79543.0,0.18152]
[1744310503065,0.012571,79548.0,79543.0,0.30852269]
[1744310503257,0.264002,79545.0,79543.0,0.18161511]
[1744310503471,0.012571,79544.0,79543.0,0.18161511]
[1744310503679,0.012571,79544.0,79543.0,9.511e-05]
[1744310504705,0.251431,79545.0,79543.0,9.511e-05]
[1744310504863,0.012571,79544.0,79543.0,9.511e-05]
[1744310505070,0.251392,79557.0,79548.0,0.251417]
[1744310505266,0.251389,79558.0,79553.0,0.01257]
[1744310505469,0.251379,79561.0,79554.0,0.12690758]
[1744310505470,0.251394,79557.0,79554.0,0.12690758]
[1744310505674,0.01257,79553.0,79549.0,0.18152]
[1744310505877,0.01257,79550.0,79549.0,0.18152]
[1744310506376,0.264004,79544.0,79543.0,9.511e-05]
[1744310507504,0.01257,79549.0,79543.0,9.511e-05]
[1744310507704,0.01257,79550.0,79543.0,9.511e-05]
[1744310507900,0.251424,79547.0,79543.0,9.511e-05]
[1744310508171,0.25143,79545.0,79543.0,9.511e-05]
[1744310508336,0.251418,79549.0,79543.0,9.511e-05]
[1744310508518,0.263984,79550.0,79543.0,9.511e-05]
[1744310508719,0.251433,79544.0,79543.0,9.511e-05]
[1744310508920,0.264004,79544.0,79543.0,9.511e-05]
[1744310511136,0.40545243,79544.0,79543.0,1.1e-07]
[1744310511337,0.264004,79544.0,79543.0,1.1e-07]
[1744310512366,0.264004,79544.0,79543.0,0.00010011]
[1744310513090,0.25143,79545.0,79543.0,0.00010011]
[1744310513354,0.25143,79548.0,79543.0,0.00010011]
[1744310513544,0.01257,79554.0,79544.0,0.12690758]
[1744310513753,0.263984,79550.0,79545.0,0.25143]
[1744310513912,0.251418,79549.0,79546.0,0.263997]
[1744310514117,0.251414,79550.0,79546.0,0.263997]
[1744310514496,1e-06,79576.0,79546.0,0.12690758]
[1744310514702,0.251364,79566.0,79557.0,0.012569]
[1744310514898,0.000168,79568.0,79560.0,0.012569]
[1744310515154,0.012735,79568.0,79561.0,0.012568]
[1744310515353,0.000168,79568.0,79564.0,0.012568]
[1744310515510,0.000168,79568.0,79563.0,0.25137]
[1744310515511,0.251525,79568.0,79563.0,0.263938]
[1744310515741,0.251361,79567.0,79561.0,0.263944]
[1744310515945,0.251366,79565.0,79561.0,0.251377]
[1744310516312,0.251366,79565.0,79558.0,0.18156]
[1744310516313,0.012569,79559.0,79558.0,0.18156]
[1744310516442,0.251383,79561.0,79558.0,0.18156]
[1744310516643,0.251383,79560.0,79558.0,0.18156]
[1744310516959,0.263953,79560.0,79558.0,0.18156]
[1744310517167,0.012567,79571.0,79564.0,0.251369]
[1744310517368,0.251369,79565.0,79561.0,0.263946]
[1744310517690,0.012568,79563.0,79558.0,0.18156]
[1744310517826,0.263934,79565.0,79560.0,0.012569]
[1744310518028,0.012568,79566.0,79561.0,0.012568]
[1744310518234,0.263937,79566.0,79561.0,0.263944]
[1744310518437,0.012568,79564.0,79557.0,0.012569]
[1744310518640,0.012568,79564.0,79560.0,0.251382]
[1744310518839,0.012568,79564.0,79558.0,0.012569]
[1744310518840,0.251373,79563.0,79559.0,0.012569]
[1744310519097,0.251373,79563.0,79558.0,0.012569]
[1744310519623,0.012568,79564.0,79559.0,0.012569]
[1744310519896,0.263941,79564.0,79560.0,0.251382]
[1744310520126,0.251373,79563.0,79560.0,0.251382]
[1744310520352,0.263941,79564.0,79560.0,0.251382]
[1744310520533,0.263941,79563.0,79559.0,0.251385]
[1744310520811,0.263934,79566.0,79561.0,0.251379]
[1744310521118,0.251382,79560.0,79553.0,0.34]
[1744310521351,0.251382,79560.0,79545.0,0.012571]
[1744310521352,0.01257,79550.0,79543.0,0.01267111]
[1744310521555,0.251415,79550.0,79547.0,0.34]
[1744310521757,0.264004,79544.0,79543.0,0.00010011]
[1744310522279,0.264001,79545.0,79543.0,0.00010011]
[1744310522521,0.012571,79547.0,79543.0,0.00010011]
[1744310522700,0.251433,79544.0,79543.0,0.00010011]
[1744310522897,0.264004,79544.0,79543.0,0.00010011]
[1744310523514,0.263991,79548.0,79543.0,0.00010011]
[1744310523692,0.01454085,79565.0,79556.0,0.012569]
[1744310523693,0.251376,79564.0,79556.0,0.012569]
[1744310523894,0.251384,79560.0,79556.0,0.012569]
[1744310524103,0.012568,79565.0,79559.0,0.251385]
[1744310524299,0.4191,79567.0,79566.0,0.251363]
[1744310524546,0.000168,79568.0,79567.0,0.263928]
[1744310526016,0.00029403,79568.0,79567.0,0.73083558]
[1744310526211,0.00029403,79568.0,79567.0,0.34]
[1744310526383,0.00029403,79568.0,79567.0,0.603928]
[1744310526770,0.00029403,79568.0,79562.0,0.432934]
[1744310526771,0.251371,79564.0,79562.0,0.18156]
[1744310526955,0.25137,79565.0,79562.0,0.18156]
[1744310527157,0.00029403,79568.0,79566.0,0.25136]
[1744310527755,0.00029403,79568.0,79564.0,0.251369]
[1744310527952,0.00029403,79568.0,79565.0,0.251366]
[1744310528099,0.00029403,79568.0,79566.0,0.251363]
[1744310528313,0.00029403,79568.0,79567.0,0.13947558]
[1744310528512,0.00029403,79568.0,79567.0,0.48198903]
[1744310528676,0.00029403,79568.0,79567.0,0.47947558]
[1744310530771,0.00029403,79568.0,79567.0,0.66079558]
[1744310530942,0.00029403,79568.0,79567.0,0.91215558]
[1744310532115,0.00029403,79568.0,79567.0,0.73083558]
[1744310532325,0.00029403,79568.0,79567.0,0.71826758]
[1744310532725,0.00029403,79568.0,79567.0,0.34]
[1744310533173,0.00029403,79568.0,79567.0,0.603928]
[1744310533364,0.00029403,79568.0,79567.0,0.34]
[1744310533562,0.00029403,79568.0,79567.0,0.59136]
[1744310534183,0.00029403,79568.0,79567.0,0.603928]
[1744310534404,0.25165103,79568.0,79567.0,0.34]
[1744310534605,0.00029403,79568.0,79567.0,0.59136]
[1744310535362,0.00029403,79568.0,79567.0,0.34]
[1744310535559,0.00029403,79568.0,79567.0,0.59136]
[1744310535801,0.012568,79564.0,79559.0,0.012569]
[1744310536033,0.251363,79566.0,79563.0,0.263938]
[1744310536220,0.251363,79566.0,79563.0,0.25137]
[1744310536420,0.00029403,79568.0,79567.0,0.263928]
[1744310537811,0.01286103,79568.0,79563.0,0.012568]
[1744310537971,0.00029403,79568.0,79566.0,0.251362]
[1744310538260,0.25165203,79568.0,79564.0,0.263935]
[1744310538394,0.25165203,79568.0,79562.0,0.012568]
[1744310538395,0.251366,79566.0,79562.0,0.251375]
[1744310538747,0.251366,79566.0,79563.0,0.251373]
[1744310539115,0.01286103,79568.0,79556.0,0.352569]
[1744310539317,0.251382,79560.0,79559.0,0.34]
[1744310539565,0.263951,79560.0,79559.0,0.34]
[1744310539767,0.012571,79544.0,79538.0,0.18132]
[1744310540006,0.264004,79544.0,79538.0,0.18132]
[1744310540122,0.012571,79548.0,79538.0,0.18132]
[1744310540123,0.251389,79558.0,79551.0,0.01257]
[1744310540319,0.251404,79554.0,79551.0,0.25141]
[1744310540552,0.251414,79550.0,79543.0,0.37844258]
[1744310540781,0.01257,79553.0,79550.0,0.251413]
[1744310541011,0.012571,79548.0,79543.0,0.0001]
[1744310541233,0.264004,79544.0,79543.0,0.0001]
[1744310541464,0.01257,79552.0,79545.0,0.012571]
[1744310541707,0.263983,79551.0,79547.0,0.251423]
[1744310541943,0.000168,79568.0,79545.0,0.012571]
[1744310541944,0.251397,79556.0,79545.0,0.012571]
[1744310542181,0.251408,79552.0,79548.0,0.26399]
[1744310542408,0.251414,79550.0,79548.0,0.251419]
[1744310542627,0.00012599,79553.0,79551.0,0.01257]
[1744310542862,0.00012599,79553.0,79552.0,0.251407]
[1744310543102,0.00012599,79553.0,79552.0,0.603977]
[1744310543359,0.00012599,79553.0,79552.0,0.73088458]
[1744310545416,9.9e-07,79553.0,79552.0,1.84780758]
[1744310545658,0.000168,79568.0,79567.0,0.803928]
[1744310545925,0.000168,79568.0,79567.0,1.11215558]
[1744310546390,0.000168,79568.0,79567.0,1.01215558]
[1744310546646,0.000168,79568.0,79567.0,0.91215558]
[1744310547551,0.251525,79568.0,79567.0,0.18132]
[1744310547776,0.251525,79568.0,79567.0,0.445248]
[1744310547777,0.000168,79568.0,79567.0,0.445248]
[1744310548493,0.000168,79568.0,79567.0,0.263928]
[1744310548745,0.000168,79568.0,79567.0,0.37826758]
[1744310548965,0.000168,79568.0,79567.0,0.83083558]
[1744310550853,0.000168,79568.0,79567.0,0.88949234]
[1744310551027,1e-06,79576.0,79575.0,0.463901]
[1744310551231,1e-06,79576.0,79575.0,0.59080858]
[1744310551452,1e-06,79576.0,79575.0,0.93080858]
[1744310551835,1e-06,79576.0,79575.0,0.96896611]
[1744310552891,0.000168,79585.0,79584.0,0.803871]
[1744310553032,0.00029406,79585.0,79584.0,2.40501858]
[1744310553535,6e-08,79585.0,79584.0,2.40501858]
[1744310553971,6e-08,79585.0,79584.0,2.61675943]
[1744310554200,6e-08,79585.0,79584.0,2.65487917]
[1744310554535,6e-08,79585.0,79584.0,2.61675943]
[1744310555016,6e-08,79585.0,79584.0,2.61685943]
[1744310556337,0.000168,79591.0,79588.0,0.603858]
[1744310556338,0.00029686,79589.0,79588.0,0.603858]
[1744310556478,0.00029686,79589.0,79588.0,1.30486858]
[1744310556682,0.00464236,79589.0,79588.0,1.21048058]
[1744310559940,0.00464236,79589.0,79588.0,1.00880858]
[1744310560158,0.00464236,79589.0,79588.0,0.99101883]
[1744310562642,0.00464236,79589.0,79588.0,0.84023983]
[1744310562870,0.00464236,79589.0,79588.0,0.90298813]
[1744310563031,0.00464236,79589.0,79588.0,0.83076558]
[1744310564620,0.00464236,79589.0,79588.0,0.84008372]
[1744310565139,0.00464236,79589.0,79588.0,0.94008372]
[1744310565981,3.6e-07,79589.0,79588.0,1.68254742]
[1744310566155,3.6e-07,79589.0,79588.0,0.98518372]
[1744310566353,3.6e-07,79594.0,79593.0,0.1]
[1744310566564,3.6e-07,79594.0,79593.0,0.9332606]
[1744310566770,3.6e-07,79594.0,79593.0,0.93074858]
[1744310567177,3.6e-07,79594.0,79593.0,0.94354503]
[1744310567528,3.6e-07,79594.0,79593.0,1.04354503]
[1744310568159,3.6e-07,79594.0,79593.0,0.94354503]
[1744310568366,3.6e-07,79594.0,79593.0,1.04354503]
[1744310569169,3.6e-07,79594.0,79593.0,1.04364503]
[1744310571848,3.6e-07,79594.0,79593.0,0.94364503]
[1744310572048,3.6e-07,79594.0,79593.0,1.04364503]
[1744310572968,3.6e-07,79594.0,79593.0,0.90639293]
[1744310573164,3.6e-07,79594.0,79593.0,1.04364503]
[1744310575169,3.6e-07,79594.0,79593.0,1.22468503]
[1744310575365,3.6e-07,79594.0,79593.0,1.12468503]
[1744310575866,3.6e-07,79594.0,79593.0,1.02468503]
[1744310576299,3.6e-07,79594.0,79593.0,0.0001]
[1744310576675,3.6e-07,79594.0,79593.0,0.251378]
[1744310576937,3.6e-07,79594.0,79593.0,0.0001]
[1744310577627,3.6e-07,79594.0,79593.0,0.251378]
[1744310577832,3.6e-07,79594.0,79593.0,0.0001]
[1744310578253,3.6e-07,79594.0,79593.0,0.263941]
[1744310579283,3.6e-07,79594.0,79593.0,0.39084858]
[1744310580260,3.6e-07,79594.0,79593.0,0.73084858]
[1744310581308,3.6e-07,79594.0,79593.0,0.3401]
[1744310581506,3.6e-07,79594.0,79593.0,0.0001]
[1744310581719,3.6e-07,79594.0,79593.0,0.263941]
[1744310582123,3.6e-07,79594.0,79593.0,0.0001]
[1744310582332,0.31163836,79594.0,79593.0,0.0001]
[1744310582492,0.263868,79585.0,79584.0,0.0001]
[1744310582693,0.32460885,79585.0,79584.0,0.0001]
[1744310584342,0.32460885,79585.0,79556.0,0.2517276]
[1744310584343,0.012569,79560.0,79556.0,0.0003356]
[1744310584667,0.251385,79559.0,79556.0,0.00046166]
[1744310584820,0.263954,79560.0,79557.0,0.34]
[1744310585019,0.263961,79557.0,79556.0,0.00046166]
[1744310585469,0.263957,79559.0,79556.0,0.00046166]
[1744310585677,0.012568,79563.0,79557.0,0.251392]
[1744310585678,0.263942,79563.0,79557.0,0.251392]
[1744310585838,0.251388,79558.0,79556.0,0.34046166]
[1744310586455,0.263942,79563.0,79560.0,0.251381]
[1744310586742,0.0457,79575.0,79563.0,0.012568]
[1744310586963,0.012568,79562.0,79556.0,0.00046166]
[1744310587185,0.012568,79565.0,79559.0,0.251383]
[1744310587417,0.263934,79565.0,79559.0,0.012569]
[1744310587645,0.251373,79563.0,79560.0,0.251382]
[1744310587876,0.251371,79564.0,79560.0,0.251382]
[1744310588099,0.26392,79570.0,79564.0,0.251369]
[1744310588325,0.263921,79569.0,79565.0,0.251363]
[1744310588555,0.263921,79569.0,79564.0,0.263937]
[1744310588556,0.012567,79569.0,79561.0,0.012568]
[1744310588824,0.251354,79569.0,79563.0,0.012568]
[1744310589067,0.012568,79566.0,79561.0,0.263944]
[1744310589284,0.263931,79566.0,79562.0,0.251376]
[1744310589523,0.012567,79570.0,79565.0,0.251365]
[1744310589745,0.012567,79571.0,79564.0,0.012568]
[1744310589944,0.012568,79567.0,79561.0,0.012568]
[1744310590173,0.251377,79562.0,79560.0,0.12690758]
[1744310590415,0.012568,79562.0,79557.0,0.263959]
[1744310590608,0.251392,79557.0,79555.0,0.34]
[1744310590833,0.251392,79557.0,79550.0,0.19361]
[1744310590978,0.251388,79558.0,79555.0,0.251396]
[1744310591327,0.263954,79559.0,79555.0,0.251396]
[1744310591466,0.01454085,79574.0,79557.0,0.012569]
[1744310591684,0.012567,79572.0,79566.0,0.263928]
[1744310591889,0.012566,79574.0,79568.0,0.012567]
[1744310592089,0.251344,79572.0,79567.0,0.25136]
[1744310592315,0.012567,79572.0,79568.0,0.251355]
[1744310592514,0.263898,79576.0,79569.0,0.012567]
[1744310592711,0.012566,79578.0,79570.0,0.012567]
[1744310592927,0.012566,79578.0,79567.0,0.012568]
[1744310592928,0.012566,79574.0,79567.0,0.012568]
[1744310593102,0.251338,79575.0,79570.0,0.012567]
[1744310593509,0.251341,79573.0,79570.0,0.263917]
[1744310593723,0.251339,79574.0,79570.0,0.263917]
[1744310593920,0.251351,79570.0,79563.0,0.34]
[1744310594128,0.251374,79563.0,79558.0,0.012569]
[1744310594324,0.251374,79563.0,79561.0,0.34]
[1744310594789,0.25137,79564.0,79561.0,0.591378]
[1744310595023,0.012568,79564.0,79557.0,0.012569]
[1744310595208,0.012568,79563.0,79557.0,0.352569]
[1744310595446,0.251376,79562.0,79559.0,0.251383]
[1744310595623,0.251376,79562.0,79559.0,0.251385]
[1744310595829,0.012567,79568.0,79563.0,0.263938]
[1744310596037,0.012567,79568.0,79560.0,0.012569]
[1744310596264,0.251355,79569.0,79566.0,0.251363]
[1744310596447,0.012567,79569.0,79561.0,0.012568]
[1744310596772,0.058165,79583.0,79576.0,0.263898]
[1744310596917,0.012566,79575.0,79568.0,0.432234]
[1744310597125,0.012565,79580.0,79569.0,0.012567]
[1744310597326,0.012565,79582.0,79577.0,0.251328]
[1744310597503,0.263879,79582.0,79576.0,0.012566]
[1744310597709,0.012565,79580.0,79573.0,0.012567]
[1744310597912,0.012566,79578.0,79571.0,0.251346]
[1744310598151,0.012566,79576.0,79571.0,0.263913]
[1744310598379,0.251336,79575.0,79572.0,0.251342]
[1744310598585,0.012565,79582.0,79572.0,0.012567]
[1744310598790,0.012566,79576.0,79572.0,0.251343]
[1744310599013,0.25132,79580.0,79576.0,0.25133]
[1744310599188,0.251323,79579.0,79573.0,0.251341]
[1744310599356,0.263881,79582.0,79574.0,0.012566]
[1744310599554,0.012564,79587.0,79578.0,0.012566]
[1744310599764,0.012564,79587.0,79581.0,0.012565]
[1744310599979,0.012565,79584.0,79580.0,0.251313]
[1744310600204,0.060164,79591.0,79580.0,0.012565]
[1744310600418,0.251304,79585.0,79582.0,0.263877]
[1744310600836,0.251304,79585.0,79576.0,0.251329]
[1744310600837,0.251325,79579.0,79576.0,0.251329]
[1744310601036,0.263881,79582.0,79579.0,0.251322]
[1744310601245,0.251316,79582.0,79577.0,0.012566]
[1744310601445,0.251316,79581.0,79577.0,0.012566]
[1744310601791,0.012566,79578.0,79575.0,0.00012606]
[1744310601991,0.012566,79579.0,79575.0,0.00012606]
[1744310602170,0.251331,79578.0,79575.0,0.25145906]
[1744310602750,0.263875,79583.0,79577.0,0.251328]
[1744310602931,0.263875,79583.0,79575.0,0.00012606]
[1744310602932,0.251322,79579.0,79575.0,0.00012606]
[1744310603553,0.251326,79578.0,79575.0,0.00012606]
[1744310603910,0.251326,79578.0,79575.0,0.25146006]
[1744310604329,0.251323,79579.0,79576.0,0.251329]
[1744310604681,0.012564,79589.0,79581.0,0.012565]
[1744310604882,0.012564,79589.0,79583.0,0.251307]
[1744310604883,0.2513,79586.0,79583.0,0.251307]
[1744310605085,0.251306,79585.0,79581.0,0.251316]
[1744310605463,0.012565,79585.0,79581.0,0.251315]
[1744310605671,0.251312,79583.0,79580.0,0.251313]
[1744310606272,0.251312,79583.0,79579.0,0.012566]
[1744310606480,0.251312,79583.0,79580.0,0.251317]
[1744310606677,0.060164,79591.0,79586.0,0.2513]
[1744310606877,0.012564,79588.0,79582.0,0.012565]
[1744310607114,0.012564,79590.0,79585.0,0.251303]
[1744310607277,0.251296,79588.0,79585.0,0.251303]
[1744310607479,0.251296,79588.0,79584.0,0.263871]
[1744310607480,0.251318,79581.0,79577.0,0.251328]
[1744310607712,0.012565,79581.0,79575.0,0.26402606]
[1744310607860,0.012565,79582.0,79575.0,0.26402606]
[1744310607861,0.251319,79582.0,79579.0,0.251322]
[1744310608269,3.6e-07,79594.0,79584.0,0.012565]
[1744310608469,0.251285,79591.0,79586.0,0.012565]
[1744310608796,0.012564,79590.0,79584.0,0.012565]
[1744310608960,0.251294,79588.0,79583.0,0.012565]
[1744310609167,0.012564,79589.0,79577.0,0.34]
[1744310609168,0.263881,79582.0,79577.0,0.34]
[1744310609368,0.012566,79578.0,79575.0,0.00012606]
[1744310609589,0.251332,79576.0,79575.0,0.00012606]
[1744310610124,0.251329,79577.0,79575.0,0.00012606]
[1744310610329,0.251323,79579.0,79577.0,0.251328]
[1744310610540,0.251309,79584.0,79576.0,0.012566]
[1744310610717,0.251319,79580.0,79576.0,0.012566]
[1744310611080,0.251322,79580.0,79575.0,0.26402706]
[1744310611298,0.251322,79580.0,79575.0,0.00012606]
[1744310611299,0.263887,79580.0,79575.0,0.00012606]
[1744310611560,0.251328,79578.0,79575.0,0.00012606]
[1744310611784,0.251328,79578.0,79575.0,0.25146006]
[1744310612006,0.251329,79577.0,79575.0,0.00012606]
[1744310612472,0.251328,79577.0,79575.0,0.00012606]
[1744310612720,0.263898,79576.0,79575.0,0.00012606]
[1744310612947,0.40534643,79576.0,79575.0,0.00012606]
[1744310614147,0.263898,79576.0,79575.0,0.00012606]
[1744310614608,0.012565,79583.0,79575.0,0.26402606]
[1744310614836,0.251331,79577.0,79575.0,0.00012606]
[1744310615063,0.012566,79578.0,79575.0,0.00012606]
[1744310615309,0.4191,79598.0,79576.0,0.012566]
[1744310615584,0.4191,79598.0,79590.0,0.012564]
[1744310615776,0.012899,79596.0,79591.0,0.251284]
[1744310615908,0.012564,79592.0,79584.0,0.012565]
[1744310616109,0.251309,79583.0,79582.0,0.18092]
[1744310616310,0.263874,79583.0,79582.0,0.18092]
[1744310617256,0.263869,79585.0,79582.0,0.18092]
[1744310617457,0.251309,79583.0,79582.0,0.18092]
[1744310617852,0.263873,79584.0,79582.0,0.18092]
[1744310618037,0.251309,79583.0,79582.0,0.18092]
[1744310618239,0.263874,79583.0,79582.0,0.18092]
[1744310618445,0.263873,79584.0,79582.0,0.18092]
[1744310618658,0.0127299,79600.0,79590.0,0.012564]
[1744310618867,0.251606,79596.0,79593.0,0.251278]
[1744310619234,0.000336,79596.0,79593.0,0.263841]
[1744310619446,0.000336,79596.0,79593.0,0.27665073]
[1744310620208,0.000336,79596.0,79579.0,0.263887]
[1744310620209,0.012564,79590.0,79579.0,0.263887]
[1744310620413,0.263863,79587.0,79583.0,0.251308]
[1744310620617,0.251287,79590.0,79585.0,0.012565]
[1744310620818,0.251295,79588.0,79584.0,0.251306]
[1744310621070,0.012564,79592.0,79583.0,0.263868]
[1744310621274,0.251286,79591.0,79587.0,0.251294]
[1744310621445,0.012564,79590.0,79584.0,0.251306]
[1744310621671,0.251297,79587.0,79584.0,0.251306]
[1744310621885,0.012564,79592.0,79587.0,0.251294]
[1744310622086,0.251294,79588.0,79584.0,0.012565]
[1744310622390,0.251296,79588.0,79584.0,0.263869]
[1744310622584,0.251297,79587.0,79584.0,0.263869]
[1744310622783,0.263874,79583.0,79582.0,0.18092]
[1744310622962,0.2513,79586.0,79582.0,0.18092]
[1744310623153,0.251306,79584.0,79582.0,0.18092]
[1744310623355,0.251304,79585.0,79582.0,0.432233]
[1744310623664,0.251307,79584.0,79582.0,0.18092]
[1744310623894,0.251607,79596.0,79583.0,0.251309]
[1744310624092,0.012564,79592.0,79585.0,0.012565]
[1744310624293,0.251292,79589.0,79587.0,0.251297]
[1744310624471,0.251287,79590.0,79587.0,0.251297]
[1744310624672,3.6e-07,79594.0,79590.0,0.251286]
[1744310624904,0.251281,79593.0,79590.0,0.251286]
[1744310625076,3.6e-07,79594.0,79593.0,0.251278]
[1744310625458,3.6e-07,79594.0,79593.0,0.263841]
[1744310625664,3.6e-07,79594.0,79593.0,0.251278]
[1744310625863,0.25127536,79594.0,79591.0,0.263848]
[1744310626059,3.6e-07,79594.0,79593.0,0.251278]
[1744310626265,0.012563,79593.0,79589.0,0.25129]
[1744310626487,0.25127636,79594.0,79590.0,0.251287]
[1744310626934,0.012563,79593.0,79589.0,0.25129]
[1744310627136,0.012563,79593.0,79587.0,0.18064]
[1744310627137,0.263858,79588.0,79587.0,0.18074]
[1744310627452,0.251291,79589.0,79587.0,0.18074]
[1744310627749,0.263858,79588.0,79587.0,0.18074]
[1744310628565,3.6e-07,79594.0,79591.0,0.251282]
[1744310628774,3.6e-07,79594.0,79591.0,0.012564]
[1744310628971,0.01256336,79594.0,79589.0,0.25129]
[1744310629173,0.251281,79593.0,79589.0,0.37819758]
[1744310629448,3.6e-07,79594.0,79591.0,0.251284]
[1744310629602,3.6e-07,79594.0,79592.0,0.251278]
[1744310629946,0.01256336,79594.0,79590.0,0.251286]
[1744310630087,3.6e-07,79594.0,79591.0,0.251283]
[1744310630286,3.6e-07,79594.0,79590.0,0.251287]
[1744310630488,3.6e-07,79594.0,79591.0,0.251284]
[1744310630693,3.6e-07,79594.0,79592.0,0.251279]
[1744310630894,0.25127636,79594.0,79591.0,0.251284]
[1744310631075,3.6e-07,79594.0,79592.0,0.251281]
[1744310631277,0.01256336,79594.0,79589.0,0.13947158]
[1744310631472,0.01256336,79594.0,79591.0,0.251284]
[1744310631672,3.6e-07,79594.0,79592.0,0.25128]
[1744310631938,3.6e-07,79594.0,79593.0,0.251278]
[1744310632241,3.6e-07,79594.0,79593.0,0.263841]
[1744310633606,3.6e-07,79594.0,79593.0,0.251278]
[1744310633813,3.6e-07,79594.0,79591.0,0.263848]
[1744310634125,3.6e-07,79594.0,79592.0,0.251281]
[1744310634516,3.6e-07,79594.0,79593.0,0.251278]
[1744310635166,3.6e-07,79594.0,79592.0,0.263845]
[1744310635574,3.6e-07,79594.0,79592.0,0.251281]
[1744310635788,3.6e-07,79594.0,79593.0,0.251278]
[1744310636492,3.6e-07,79594.0,79592.0,0.263845]
[1744310636696,3.6e-07,79594.0,79592.0,0.251281]
[1744310636895,3.6e-07,79594.0,79593.0,0.263841]
[1744310637097,3.6e-07,79594.0,79593.0,0.73074858]
[1744310637797,3.6e-07,79594.0,79593.0,0.74026224]
[1744310638883,3.6e-07,79594.0,79593.0,2.03286224]
[1744310640614,0.002,79609.0,79605.0,0.363802]
[1744310640817,0.002,79609.0,79605.0,0.67130958]